lending/lending_fUSD_20260209
["ID","MTS","AMOUNT","RATE_DAILY","PERIOD"]
[404898607,1770663038042,-500.0,0.00017215,2]
[404898608,1770663038052,-151.0,0.00017215,2]
[404898609,1770663038061,-200.0,0.00017215,2]
[404898610,1770663038071,-500.0,0.00017215,2]
[404898611,1770663038080,-151.0,0.00017215,2]
[404898612,1770663038090,-500.0,0.00017215,2]
[404898613,1770663038099,-151.0,0.00017215,2]
[404898614,1770663038109,-151.0,0.00017215,2]
[404898615,1770663038122,-151.0,0.00017215,2]
[404898616,1770663038132,-151.0,0.00017215,2]
[404898617,1770663038142,-151.0,0.00017215,2]
[404898618,1770663038151,-500.0,0.00017215,2]
[404898619,1770663038160,-500.0,0.00017215,2]
[404898620,1770663038169,-500.0,0.00017215,2]
[404898621,1770663038179,-500.0,0.00017215,2]
[404898622,1770663038188,-200.0,0.00017215,2]
[404898623,1770663038197,-500.0,0.00017215,2]
[404898624,1770663038207,-151.0,0.00017215,2]
[404898625,1770663038217,-500.0,0.00017215,2]
[404898626,1770663038226,-151.0,0.00017215,2]
[404898627,1770663038236,-500.0,0.00017215,2]
[404898628,1770663038246,-151.0,0.00017215,2]
[404898629,1770663038256,-500.0,0.00017215,2]
[404898630,1770663038266,-151.0,0.00017215,2]
[404898631,1770663038278,-500.0,0.00017215,2]
[404898632,1770663038287,-151.0,0.00017215,2]
[404898633,1770663038297,-500.0,0.00017215,2]
[404898634,1770663038307,-151.0,0.00017215,2]
[404898635,1770663038317,-500.0,0.00017215,2]
[404898636,1770663038327,-151.0,0.00017215,2]
[404898637,1770663038336,-183.76996164,0.00017215,2]
[404898638,1770663038345,-151.0,0.00017215,2]
[404898639,1770663038565,-151.0,0.00017215,2]
[404898640,1770663038589,-151.0,0.00017215,2]
[404898641,1770663038599,-151.0,0.00017215,2]
[404898642,1770663038608,-500.0,0.00017215,2]
[404898643,1770663038618,-278.04542186,0.00017215,2]
[404898644,1770663038627,-500.0,0.00017215,2]
[404898645,1770663038636,-268.46648169,0.00017215,2]
[404898646,1770663038645,-500.0,0.00017215,2]
[404898647,1770663038655,-392.49437447,0.0001725,2]
[404898648,1770663038665,-421.08,0.00017252,2]
[404898649,1770663038674,-173.75,0.00017261,2]
[404898650,1770663038684,-17495.35005421,0.00017279,2]
[404898651,1770663038692,-2721.63832245,0.00017295,2]
[404898652,1770663038702,-17495.35005421,0.00017363,2]
[404898653,1770663038711,-2159.24963914,0.00017371,2]
[404898654,1770663038720,-5328.02601871,0.00017371,2]
[404898655,1770663038729,-392.92735507,0.00017371,2]
[404898656,1770663038738,-238.54827576,0.00017379,2]
[404898657,1770663038749,-2500.0,0.00017398,2]
[404898658,1770663038757,-16783.50677609,0.00017398,2]
[404898659,1770663038766,-16783.50677609,0.00017422,2]
[404898660,1770663038778,-16783.50677609,0.00017446,2]
[404898661,1770663038787,-2721.63832245,0.00017447,2]
[404898662,1770663038797,-17495.35005421,0.00017447,2]
[404898663,1770663038807,-5528.0,0.00017452,2]
[404898664,1770663038816,-392.49437447,0.00017467,2]
[404898665,1770663038828,-16783.50677609,0.0001747,2]
[404898666,1770663038838,-500.0,0.00017489,2]
[404898667,1770663038850,-386.0,0.00017491,2]
[404898668,1770663038859,-16783.50677609,0.00017494,2]
[404898669,1770663038869,-500.0,0.00017497,2]
[404898670,1770663038878,-500.0,0.00017497,2]
[404898671,1770663038887,-500.0,0.00017497,2]
[404898672,1770663038897,-500.0,0.00017497,2]
[404898673,1770663038906,-500.0,0.00017497,2]
[404898674,1770663038916,-500.0,0.00017497,2]
[404898675,1770663038927,-500.0,0.00017497,2]
[404898676,1770663038937,-500.0,0.00017497,2]
[404898677,1770663038947,-500.0,0.00017497,2]
[404898678,1770663038956,-500.0,0.00017497,2]
[404898679,1770663038966,-500.0,0.00017497,2]
[404898680,1770663038976,-500.0,0.00017497,2]
[404898681,1770663038986,-500.0,0.00017497,2]
[404898682,1770663038996,-212.60993331,0.00017497,2]
[404898683,1770663039006,-500.0,0.00017497,2]
[404898684,1770663039016,-500.0,0.00017497,2]
[404898685,1770663039029,-500.0,0.00017497,2]
[404898686,1770663039039,-500.0,0.00017497,2]
[404898687,1770663039049,-500.0,0.00017497,2]
[404898688,1770663039059,-500.0,0.00017497,2]
[404898689,1770663039069,-500.0,0.00017497,2]
[404898690,1770663039079,-500.0,0.00017497,2]
[404898691,1770663039089,-500.0,0.00017497,2]
[404898692,1770663039098,-500.0,0.00017497,2]
[404898693,1770663039108,-500.0,0.00017497,2]
[404898694,1770663039117,-500.0,0.00017497,2]
[404898695,1770663039127,-500.0,0.00017497,2]
[404898696,1770663039137,-500.0,0.00017497,2]
[404898697,1770663039146,-500.0,0.00017497,2]
[404898698,1770663039155,-500.0,0.00017497,2]
[404898699,1770663039164,-500.0,0.00017497,2]
[404898700,1770663039173,-500.0,0.00017497,2]
[404898701,1770663039183,-500.0,0.00017497,2]
[404898702,1770663039192,-500.0,0.00017497,2]
[404898703,1770663039201,-500.0,0.00017497,2]
[404898704,1770663039211,-500.0,0.00017497,2]
[404898705,1770663039220,-500.0,0.00017497,2]
[404898706,1770663039230,-500.0,0.00017497,2]
[404898707,1770663039239,-500.0,0.00017497,2]
[404898708,1770663039248,-500.0,0.00017497,2]
[404898709,1770663039258,-500.0,0.00017497,2]
[404898710,1770663039267,-500.0,0.00017497,2]
[404898711,1770663039278,-500.0,0.00017497,2]
[404898712,1770663039288,-500.0,0.00017497,2]
[404898713,1770663039298,-500.0,0.00017497,2]
[404898714,1770663039307,-500.0,0.00017497,2]
[404898715,1770663039317,-397.96372533,0.00017497,2]
[404898716,1770663039327,-500.0,0.00017497,2]
[404898717,1770663039337,-500.0,0.00017497,2]
[404898718,1770663039346,-500.0,0.00017497,2]
[404898719,1770663039356,-500.0,0.00017497,2]
[404898720,1770663039366,-500.0,0.00017497,2]
[404898721,1770663039376,-500.0,0.00017497,2]
[404898722,1770663039386,-500.0,0.00017497,2]
[404898723,1770663039396,-500.0,0.00017497,2]
[404898724,1770663039405,-500.0,0.00017497,2]
[404898725,1770663039415,-500.0,0.00017497,2]
[404898726,1770663039424,-500.0,0.00017497,2]
[404898727,1770663039434,-500.0,0.00017497,2]
[404898728,1770663039444,-500.0,0.00017497,2]
[404898729,1770663039453,-500.0,0.00017497,2]
[404898730,1770663039463,-500.0,0.00017497,2]
[404898731,1770663039473,-500.0,0.00017497,2]
[404898732,1770663039482,-500.0,0.00017497,2]
[404898733,1770663039492,-500.0,0.00017497,2]
[404898734,1770663039503,-500.0,0.00017497,2]
[404898735,1770663039513,-500.0,0.00017497,2]
[404898736,1770663039522,-323.17244651,0.00017497,2]
[404898737,1770663039533,-500.0,0.00017497,2]
[404898739,1770663039543,-500.0,0.00017497,2]
[404898741,1770663039552,-423.17244651,0.00017497,2]
[404898743,1770663039563,-500.0,0.00017497,2]
[404898745,1770663039572,-500.0,0.00017497,2]
[404898747,1770663039582,-500.0,0.00017497,2]
[404898748,1770663039591,-500.0,0.00017497,2]
[404898749,1770663039609,-500.0,0.00017497,2]
[404898750,1770663039620,-423.17244651,0.00017497,2]
[404898751,1770663039630,-500.0,0.00017497,2]
[404898752,1770663039640,-618.26617197,0.00017497,2]
[404898753,1770663039650,-500.0,0.00017497,2]
[404898754,1770663039659,-500.0,0.00017497,2]
[404898755,1770663039668,-546.02066477,0.00017497,2]
[404898756,1770663039678,-487.0,0.00017498,2]
[404898757,1770663039687,-487.0,0.00017498,2]
[404898758,1770663039697,-487.0,0.00017498,2]
[404898759,1770663039706,-487.0,0.00017498,2]
[404898760,1770663039716,-524.44,0.00017498,2]
[404898761,1770663039726,-16783.50677609,0.00017519,2]
[404898762,1770663039735,-150.0,0.00017525,2]
[404898763,1770663039744,-150.0,0.00017525,2]
[404898764,1770663039754,-500.0,0.00017525,2]
[404898765,1770663039763,-500.0,0.00017525,2]
[404898766,1770663039773,-500.0,0.00017525,2]
[404898767,1770663039784,-150.0,0.00017525,2]
[404898768,1770663039793,-250.0,0.00017525,2]
[404898769,1770663039803,-500.0,0.00017525,2]
[404898770,1770663039812,-500.0,0.00017525,2]
[404898771,1770663039823,-150.0,0.00017525,2]
[404898772,1770663039832,-150.0,0.00017525,2]
[404898773,1770663039841,-500.0,0.00017525,2]
[404898774,1770663039850,-500.0,0.00017525,2]
[404898775,1770663039860,-150.0,0.00017525,2]
[404898776,1770663039869,-17495.35005421,0.00017531,2]
[404898777,1770663039879,-16783.50677609,0.00017543,2]
[404898778,1770663039888,-150.0,0.00017551,2]
[404898779,1770663039898,-150.0,0.00017551,2]
[404898780,1770663039908,-150.0,0.00017551,2]
[404898781,1770663039917,-150.0,0.00017551,2]
[404898782,1770663039927,-16783.50677609,0.00017567,2]
[404898783,1770663039936,-150.0,0.0001758,2]
[404898784,1770663039946,-150.0,0.0001758,2]
[404898785,1770663039955,-500.0,0.0001758,2]
[404898786,1770663039964,-501.68337688,0.0001758,2]
[404898787,1770663039974,-500.0,0.0001758,2]
[404898788,1770663039983,-150.0,0.0001758,2]
[404898789,1770663039992,-500.0,0.0001758,2]
[404898790,1770663040002,-202.65824517,0.0001758,2]
[404898791,1770663040011,-500.0,0.0001758,2]
[404898792,1770663040019,-500.0,0.0001758,2]
[404898793,1770663040030,-500.0,0.0001758,2]
[404898794,1770663040039,-16783.50677609,0.00017591,2]
[404898795,1770663040048,-2721.63832245,0.00017598,2]
[404898796,1770663040058,-150.0,0.00017606,2]
[404898797,1770663040066,-150.0,0.00017606,2]
[404898798,1770663040075,-150.0,0.00017606,2]
[404898799,1770663040084,-150.0,0.00017606,2]
[404898800,1770663040093,-16783.50677609,0.00017615,2]
[404898801,1770663040103,-17495.35005421,0.00017615,2]
[404898802,1770663040112,-150.0,0.00017635,2]
[404898803,1770663040121,-200.0,0.00017635,2]
[404898805,1770663040130,-500.0,0.00017635,2]
[404898807,1770663040140,-150.0,0.00017635,2]
[404898809,1770663040149,-500.0,0.00017635,2]
[404898811,1770663040158,-155.69787542,0.00017635,2]
[404898812,1770663040167,-500.0,0.00017635,2]
[404898813,1770663040176,-500.0,0.00017635,2]
[404898814,1770663040186,-500.0,0.00017635,2]
[404898815,1770663040195,-201.68846784,0.00017661,2]
[404898816,1770663040204,-150.0,0.00017661,2]
[404898817,1770663040213,-150.0,0.00017661,2]
[404898818,1770663040222,-150.0,0.00017661,2]
[404898819,1770663040232,-392.49437447,0.00017683,2]
[404898820,1770663040241,-268.25268962,0.00017689,2]
[404898821,1770663040250,-500.0,0.00017689,2]
[404898822,1770663040259,-500.0,0.00017689,2]
[404898823,1770663040268,-150.0,0.00017689,2]
[404898824,1770663040279,-500.0,0.00017689,2]
[404898825,1770663040288,-500.0,0.00017689,2]
[404898826,1770663040297,-500.0,0.00017689,2]
[404898827,1770663040307,-1470.94,0.00017698,2]
[404898828,1770663040316,-151.0,0.00017705,2]
[404898829,1770663040325,-1500000.0,0.00017708,2]
[404898830,1770663040335,-252.76989471,0.00017715,2]
[404898831,1770663040345,-150.0,0.00017715,2]
[404898832,1770663040355,-150.0,0.00017715,2]
[404898833,1770663040365,-600.0,0.00017744,2]
[404898834,1770663040374,-500.0,0.00017744,2]
[404898835,1770663040383,-150.0,0.00017744,2]
[404898836,1770663040393,-500.0,0.00017744,2]
[404898837,1770663040402,-500.0,0.00017744,2]
[404898838,1770663040412,-500.0,0.00017744,2]
[404898839,1770663040423,-2721.63832245,0.00017749,2]
[404898840,1770663040432,-500.0,0.00017763,2]
[404898841,1770663040441,-200.0,0.00017763,2]
[404898842,1770663040451,-200.0,0.00017763,2]
[404898843,1770663040461,-500.0,0.00017763,2]
[404898844,1770663040470,-500.0,0.00017799,2]
[404898845,1770663040479,-250.0,0.00017799,2]
[404898846,1770663040488,-500.0,0.00017799,2]
[404898847,1770663040499,-500.0,0.00017799,2]
[404898848,1770663040510,-500.0,0.00017799,2]
[404898849,1770663040519,-500.0,0.00017808,2]
[404898850,1770663040530,-500.0,0.00017808,2]
[404898851,1770663040543,-500.0,0.00017808,2]
[404898852,1770663040554,-500.0,0.00017808,2]
[404898853,1770663040563,-500.0,0.00017808,2]
[404898854,1770663040574,-500.0,0.00017808,2]
[404898855,1770663040584,-500.0,0.00017808,2]
[404898856,1770663040594,-500.0,0.00017808,2]
[404898857,1770663040603,-500.0,0.00017808,2]
[404898858,1770663040613,-500.0,0.00017808,2]
[404898859,1770663040622,-500.0,0.00017808,2]
[404898860,1770663040632,-500.0,0.00017808,2]
[404898861,1770663040641,-500.0,0.00017808,2]
[404898862,1770663040651,-500.0,0.00017808,2]
[404898863,1770663040660,-500.0,0.00017808,2]
[404898864,1770663040670,-500.0,0.00017808,2]
[404898865,1770663040679,-500.0,0.00017808,2]
[404898866,1770663040689,-500.0,0.00017808,2]
[404898867,1770663040698,-500.0,0.00017808,2]
[404898868,1770663040708,-500.0,0.00017808,2]
[404898869,1770663040717,-500.0,0.00017808,2]
[404898870,1770663040726,-500.0,0.00017808,2]
[404898871,1770663040736,-500.0,0.00017808,2]
[404898872,1770663040745,-500.0,0.00017808,2]
[404898873,1770663040755,-500.0,0.00017808,2]
[404898874,1770663040764,-500.0,0.00017808,2]
[404898875,1770663040775,-500.0,0.00017808,2]
[404898876,1770663040784,-500.0,0.00017808,2]
[404898877,1770663040794,-500.0,0.00017808,2]
[404898878,1770663040804,-500.0,0.00017808,2]
[404898879,1770663040813,-500.0,0.00017808,2]
[404898880,1770663040822,-500.0,0.00017808,2]
[404898881,1770663040832,-500.0,0.00017808,2]
[404898882,1770663040842,-500.0,0.00017808,2]
[404898883,1770663040851,-500.0,0.00017808,2]
[404898884,1770663040860,-500.0,0.00017808,2]
[404898885,1770663040870,-500.0,0.00017808,2]
[404898886,1770663040880,-500.0,0.00017808,2]
[404898887,1770663040889,-500.0,0.00017808,2]
[404898888,1770663040908,-500.0,0.00017808,2]
[404898889,1770663040919,-500.0,0.00017808,2]
[404898890,1770663040932,-545.96736232,0.00017808,2]
[404898891,1770663040946,-500.0,0.00017808,2]
[404898892,1770663040958,-500.0,0.00017808,2]
[404898893,1770663040971,-500.0,0.00017808,2]
[404898894,1770663040983,-500.0,0.00017808,2]
[404898895,1770663040995,-566.21668179,0.00017808,2]
[404898896,1770663041006,-566.21668179,0.00017808,2]
[404898897,1770663041017,-566.21668179,0.00017808,2]
[404898898,1770663041028,-566.21668179,0.00017808,2]
[404898899,1770663041041,-566.21668179,0.00017808,2]
[404898900,1770663041052,-566.21668179,0.00017808,2]
[404898901,1770663041064,-566.21668179,0.00017808,2]
[404898902,1770663041076,-536.48322747,0.00017808,2]
[404898903,1770663041087,-500.0,0.00017808,2]
[404898904,1770663041098,-500.0,0.00017808,2]
[404898905,1770663041109,-500.0,0.00017808,2]
[404898906,1770663041121,-386.0,0.00017814,2]
[404898907,1770663041132,-500.0,0.00017854,2]
[404898908,1770663041143,-377.98822722,0.00017854,2]
[404898909,1770663041155,-500.0,0.00017854,2]
[404898910,1770663041167,-500.0,0.00017863,2]
[404898911,1770663041179,-450.89519064,0.000179,2]
[404898912,1770663041191,-1809.0008,0.000179,2]
[404898913,1770663041202,-10000.0,0.000179,2]
[404898914,1770663041213,-392.49437447,0.000179,2]
[404898915,1770663041225,-1000.0,0.000179,2]
[404898916,1770663041236,-238.54827576,0.000179,2]
[404898917,1770663041247,-172.31661001,0.000179,2]
[404898918,1770663041257,-2159.24963914,0.000179,2]
[404898919,1770663041267,-5328.02601871,0.000179,2]
[404898920,1770663041278,-187.77542176,0.000179,2]
[404898921,1770663041289,-392.92735507,0.000179,2]
[404898922,1770663041305,-2721.63832245,0.000179,2]
[404898923,1770663041318,-500.0,0.000179,2]
[404898924,1770663041329,-500.0,0.000179,2]
[404898925,1770663041341,-500.0,0.000179,2]
[404898926,1770663041351,-184.52318996,0.000179,2]
[404898927,1770663041362,-250.0,0.00017909,2]
[404898928,1770663041374,-400.0,0.00017909,2]
[404898929,1770663041385,-500.0,0.00017918,2]
[404898930,1770663041396,-1470.94,0.00017972,2]
[404898931,1770663041407,-150.0,0.00017972,2]
[404898932,1770663041419,-168.42940732,0.0001799,2]
[404898933,1770663041431,-151.0,0.00017997,2]
[404898934,1770663041443,-300.0,0.00017999,2]
[404898935,1770663041454,-300.0,0.00017999,2]
[404898936,1770663041464,-300.0,0.00017999,2]
[404898937,1770663041476,-8311133.56394787,0.00018,2]
[404898938,1770663041496,-867.29626824,0.00018,2]
[404898939,1770663041513,-2615.92995068,0.00018,2]
[404898940,1770663041536,-1192.99201443,0.00018,2]
[404898941,1770663041551,-7529.25,0.00018,2]
[404898942,1770663041565,-1421322.95785393,0.00018,2]
[404898952,1770663043239,-1403.79127401,0.00018,2]
[404898953,1770663043259,-320.0,0.00018,2]
[404898954,1770663043281,-1660.0,0.00018,2]
[404898955,1770663043962,-675.75,0.0001799,3]
[404898956,1770663043972,-3498.76588022,0.00018,2]
[404898966,1770663045142,190.69405047,0.00016842,2]
[404898976,1770663045489,-1668.51342935,0.00018,2]
[404898977,1770663045543,-376.09715932,0.00018,2]
[404898978,1770663045636,-16963.95393816,0.00018,2]
[404898979,1770663045649,-7150.8,0.00018,2]
[404898980,1770663047926,1693.4015793,0.00016842,2]
[404898987,1770663065973,321.25405799,0.00016932,2]
[404898995,1770663080014,500.0,0.00016932,2]
[404898996,1770663080048,500.0,0.00016932,2]
[404898997,1770663080086,500.0,0.00016932,2]
[404898998,1770663080122,500.0,0.00016932,2]
[404898999,1770663080166,500.0,0.00016932,2]
[404899000,1770663080230,500.0,0.00016932,2]
[404899001,1770663080274,500.0,0.00016932,2]
[404899002,1770663080322,500.0,0.00016932,2]
[404899003,1770663080361,500.0,0.00016932,2]
[404899004,1770663080396,500.0,0.00016932,2]
[404899005,1770663080427,0.01,0.00016932,2]
[404899006,1770663080452,499.99,0.00016932,2]
[404899007,1770663080486,500.0,0.00016932,2]
[404899008,1770663080538,500.0,0.00016932,2]
[404899009,1770663080592,242.68978604,0.00016932,2]
[404899010,1770663080653,500.0,0.00016932,2]
[404899013,1770663093272,2775.807,0.00016693,2]
[404899014,1770663094206,500.0,0.00016932,2]
[404899015,1770663094239,500.0,0.00016932,2]
[404899016,1770663094271,500.0,0.00016932,2]
[404899017,1770663094307,500.0,0.00016932,2]
[404899018,1770663094486,242.68978604,0.00016932,2]
[404899020,1770663118384,250.0,0.00015,2]
[404899022,1770663128668,500.0,0.00016504,2]
[404899026,1770663134465,255.60073897,0.00016932,2]
[404899027,1770663134733,1411.97863096,0.00016833,2]
[404899028,1770663134755,10000.01,0.00016833,2]
[404899029,1770663134778,10000.01,0.00016833,2]
[404899030,1770663134800,10000.01,0.00016833,2]
[404899031,1770663134823,1900.59906904,0.00016833,2]
[404899032,1770663138173,500.0,0.00016932,2]
[404899033,1770663138205,500.0,0.00016932,2]
[404899034,1770663138243,500.0,0.00016932,2]
[404899035,1770663138275,500.0,0.00016932,2]
[404899036,1770663138310,500.0,0.00016932,2]
[404899037,1770663138341,500.0,0.00016932,2]
[404899038,1770663138376,500.0,0.00016932,2]
[404899039,1770663138409,500.0,0.00016932,2]
[404899040,1770663138445,500.0,0.00016932,2]
[404899041,1770663138475,500.0,0.00016932,2]
[404899042,1770663138508,500.0,0.00016932,2]
[404899043,1770663138540,500.0,0.00016932,2]
[404899044,1770663138581,500.0,0.00016932,2]
[404899045,1770663138623,500.0,0.00016932,2]
[404899046,1770663138662,500.0,0.00016932,2]
[404899047,1770663138743,500.0,0.00016932,2]
[404899048,1770663138779,500.0,0.00016932,2]
[404899049,1770663138814,500.0,0.00016932,2]
[404899050,1770663138851,500.0,0.00016932,2]
[404899051,1770663138917,500.0,0.00016932,2]
[404899052,1770663138954,0.01,0.00016932,2]
[404899053,1770663138978,499.99,0.00016932,2]
[404899054,1770663139013,500.0,0.00016932,2]
[404899055,1770663139042,500.0,0.00016932,2]
[404899056,1770663139093,500.0,0.00016932,2]
[404899057,1770663139132,500.0,0.00016932,2]
[404899058,1770663139164,500.0,0.00016932,2]
[404899059,1770663139194,500.0,0.00016932,2]
[404899060,1770663139223,500.0,0.00016932,2]
[404899061,1770663139259,500.0,0.00016932,2]
[404899062,1770663139290,500.0,0.00016932,2]
[404899063,1770663139321,500.0,0.00016932,2]
[404899064,1770663139360,500.0,0.00016932,2]
[404899065,1770663139390,500.0,0.00016932,2]
[404899066,1770663139420,500.0,0.00016932,2]
[404899067,1770663139667,237.48869036,0.00016932,2]
[404899068,1770663139713,500.0,0.00016932,2]
[404899069,1770663139742,500.0,0.00016932,2]
[404899070,1770663139776,500.0,0.00016932,2]
[404899071,1770663139805,500.0,0.00016932,2]
[404899072,1770663149135,762.53130964,0.00016831,2]
[404899073,1770663149160,10000.01,0.00016831,2]
[404899074,1770663149184,10000.01,0.00016831,2]
[404899075,1770663149208,10000.01,0.00016831,2]
[404899076,1770663149230,10000.01,0.00016831,2]
[404899079,1770663191574,3182.78830765,0.00016733,2]
[404899080,1770663193919,150.0,0.00016804,2]
[404899081,1770663194406,150.0,0.00016804,2]
[404899082,1770663214310,3162.48216258,0.00016733,2]
[404899083,1770663215826,187.77542176,0.00016733,2]
[404899084,1770663228518,1608.58112758,0.00016733,2]
[404899085,1770663232368,261.95157006,0.00016733,2]
[404899086,1770663243823,150.29839688,0.00016733,2]
[404899087,1770663250082,7791.40348372,0.00016733,2]
[404899088,1770663250105,9228.61928479,0.00016733,2]
[404899089,1770663251017,771.39071521,0.00016733,2]
[404899090,1770663251041,10000.01,0.00016733,2]
[404899091,1770663251064,10000.01,0.00016733,2]
[404899186,1770663282837,545.792757,0.00016416,2]
[404899230,1770663385207,500.0,0.00015843,2]
[404899251,1770663467576,-206.37,0.00016499,2]
[404899280,1770663484847,-195.0,0.00016514,2]
[404899281,1770663484880,-206.37,0.0001653,2]
[404899282,1770663484912,-206.37,0.0001656,2]
[404899283,1770663484944,-206.37,0.0001659,2]
[404899284,1770663484980,-206.37,0.00016621,2]
[404899285,1770663485013,-279.44022548,0.00016631,2]
[404899286,1770663485047,-300.0,0.00016632,2]
[404899287,1770663485384,-1944.29580716,0.00016633,2]
[404899289,1770663485440,-5000.01,0.00016633,2]
[404899291,1770663485467,-5000.01,0.00016633,2]
[404899292,1770663485514,-5000.01,0.00016633,2]
[404899293,1770663485626,-5000.01,0.00016633,2]
[404899294,1770663485772,-5000.01,0.00016633,2]
[404899295,1770663485874,-5000.01,0.00016633,2]
[404899296,1770663487786,-5000.01,0.00016633,2]
[404899297,1770663487915,-5000.01,0.00016633,2]
[404899298,1770663488031,-5000.01,0.00016633,2]
[404899299,1770663490753,-5000.01,0.00016633,2]
[404899300,1770663491172,-5000.01,0.00016633,2]
[404899301,1770663491232,-2232.83810776,0.00016551,2]
[404899302,1770663491274,-534.33378448,0.00016551,2]
[404899303,1770663491330,-534.33378448,0.00016633,2]
[404899304,1770663491343,-3931.34243104,0.00016633,2]
[404899305,1770663491362,-5000.01,0.00016633,2]
[404899306,1770663491388,-5000.01,0.00016633,2]
[404899309,1770663569537,166.83,0.00012658,2]
[404899310,1770663569750,166.83,0.00014767,2]
[404899365,1770663666172,7931.19196246,0.00016538,2]
[404899368,1770663670294,210.74,0.000165,2]
[404899369,1770663672247,1524.41803754,0.00015816,2]
[404899370,1770663672270,6066.45196246,0.00015816,2]
[404899371,1770663675381,3191.9834918,0.00016533,2]
[404899373,1770663728409,1319.82088,7.945e-05,2]
[404899375,1770663884834,-153.87,0.00015568,2]
[404899376,1770663884856,-563.03703882,0.00015609,2]
[404899377,1770663884876,-195.0,0.00015628,2]
[404899378,1770663884897,-1632.98,0.00015646,2]
[404899379,1770663884920,-195.0,0.00015675,2]
[404899380,1770663884941,-195.0,0.00015675,2]
[404899381,1770663884962,-293.44103796,0.00015705,2]
[404899382,1770663884982,-1000.0,0.00015706,2]
[404899383,1770663885003,-300.0,0.00015708,2]
[404899384,1770663885023,-399.0,0.00015708,2]
[404899385,1770663885044,-16465.27,0.00015709,2]
[404899386,1770663885066,-1254.28,0.00015724,2]
[404899387,1770663885088,-3240.0,0.00015733,2]
[404899388,1770663885108,-563.03703882,0.0001603,2]
[404899389,1770663885128,-563.03703882,0.00016451,2]
[404899390,1770663885147,-3485.03628294,0.00016505,2]
[404899391,1770663885167,-550.0,0.00016532,2]
[404899392,1770663885189,-2500.0,0.00016533,2]
[404899393,1770663885209,-646.61050781,0.00016533,2]
[404899394,1770663885229,-15318.02049165,0.00016533,2]
[404899395,1770663885250,-2664.68716098,0.00016533,2]
[404899396,1770663885274,-153.87,0.00016541,2]
[404899397,1770663885295,-353.83408348,0.0001655,2]
[404899398,1770663885317,-1200.0,0.0001655,2]
[404899399,1770663885342,-500.0,0.0001655,2]
[404899400,1770663885366,-337.66241168,0.0001655,2]
[404899401,1770663885387,-289.0,0.0001655,2]
[404899402,1770663885407,-348.05035726,0.00016551,2]
[404899403,1770663885428,-19285.3620733,0.00016551,2]
[404899404,1770663885449,-2795.611,0.00016551,2]
[404899405,1770663885469,-15318.02049157,0.00016579,2]
[404899406,1770663885490,-19285.36207328,0.00016594,2]
[404899407,1770663885510,-168.42940732,0.00016623,2]
[404899408,1770663885531,-15318.02049157,0.00016625,2]
[404899409,1770663885551,-500.0,0.00016632,2]
[404899410,1770663885577,-224.8778406,0.00016632,2]
[404899411,1770663885599,-500.0,0.00016632,2]